Cogmind - Beta 16.1 @@@ ROGUE MODE // 2026.04.20 @ 16:24:33 Player: Nomad Result: Destroyed by G-34 Mercenary with Small Laser Performance ------------- Evolutions (1) 500 Regions Visited (4) 800 Robots Destroyed (8) 40 Value Destroyed (236) 236 Prototype IDs (0) 0 Alien Tech Used (0) 0 Bonus (50) 50 TOTAL SCORE: 1626 Bonus ------- Follower Combat Kills 50 Cogmind --------- Core Integrity 0/400 Matter 300/300 Energy 100/100 System Corruption 3% Temperature Cool (12) Movement Core (50) Location -9/Mines Parts ------- > --- POWER (2) -------- (None) > --- PROPULSION (3) --- (None) > --- UTILITY (2) ------ (None) > --- WEAPON (2) ------- (None) > --- INVENTORY (5) ---- (None) Peak State ------------ > --- POWER ------------ Ion Engine Ion Engine > --- PROPULSION ------- Aluminum Leg Aluminum Leg > --- UTILITY ---------- Improved Targeting Computer Light Armor Plating > --- WEAPON ----------- EM Pulse Gun EM Pulse Gun > --- INVENTORY -------- Small Storage Unit [Rating: 9] Favorites ----------- Power Ion Engine Engine Ion Engine Propulsion Aluminum Leg Leg Aluminum Leg Utility Small Storage Unit Storage Small Storage Unit Processor Improved Targeting Computer Protection Light Armor Plating Weapon EM Pulse Gun Energy Gun EM Pulse Gun Build | -11 -10 -10 -9 -9 ------- Run | Yrd Mat Min Mat Min Slots Evolved 2 | . . . 2 . Power 1 | . . . 1 . Propulsion 1 | . . . 1 . Utility . | . . . . . Weapon . | . . . . . Parts Attached 11 | 6 1 1 1 2 Power 2 | 1 1 . . . Engine 2 | 1 1 . . . Core . | . . . . . Reactor . | . . . . . Propulsion 4 | 2 . . . 2 Treads . | . . . . . Leg 4 | 2 . . . 2 Wheel . | . . . . . Hover . | . . . . . Flight . | . . . . . Utility 3 | 1 . 1 1 . Device . | . . . . . Storage 1 | 1 . . . . Processor 1 | . . . 1 . Hackware . | . . . . . Protection 1 | . . 1 . . Artifact . | . . . . . Weapon 2 | 2 . . . . Energy Gun 2 | 2 . . . . Energy Cannon . | . . . . . Ballistic Gun . | . . . . . Ballistic Cannon . | . . . . . Launcher . | . . . . . Special Weapon . | . . . . . Impact Weapon . | . . . . . Slashing Weapon . | . . . . . Piercing Weapon . | . . . . . Special Melee Weapon . | . . . . . Unidentified Prototypes . | . . . . . Parts Lost 10 | . . . . 10 Power 2 | . . . . 2 Propulsion 4 | . . . . 4 Utility 2 | . . . . 2 Weapon 2 | . . . . 2 Highest Loss Streak 3 | . . . . 3 To Critical Strikes 1 | . . . . 1 Average Backups . | . . 1 . . Power . | . . 1 . . Propulsion . | . . . . . Utility . | . . . . . Weapon . | . . . . . Tool/Special . | . . . . . Unused Backups . | . . . . . Power . | . . . . . Propulsion . | . . . . . Utility . | . . . . . Weapon . | . . . . . Tool/Special . | . . . . . Average Slot Usage (%) 69 | . 85 98 87 57 Engine 17 | . 14 14 22 18 Leg 21 | . 28 28 22 18 Storage 4 | . 14 14 7 . Processor 1 | . . . 3 1 Protection 4 | . . 12 11 2 Energy Gun 20 | . 28 28 22 17 Peak Build Rating 9 | 6 6 7 9 9 Average Rating 5 | 4 6 6 8 5 On Entrance 5 | . 6 6 7 9 Avg Prop Armor Cover (%) 25 | 25 . . . . Naked Turns 109 | . . . . 109 Heaviest Build 22 | 14 14 17 22 17 Greatest Support 20 | 20 20 20 20 20 Greatest Overweight (x) 5 | 1 . . 1 5 Average Overweight (x) . | . . . . . Largest Inventory Capacity 8 | 8 8 8 8 5 Average Capacity 6 | 7 8 8 6 5 Most Carried 4 | 4 1 2 2 1 Average Carried . | . . 1 . . Final Capacity 8 | 8 8 8 5 5 Final Carried 1 | . 1 1 1 . Class Distribution -------------------- 100% | Mutant Dominant Class ---------------- Mutant | -10/Materials Mutant | -10/Mines Mutant | -9/Materials Mutant | -9/Mines Resources | -11 -10 -10 -9 -9 ----------- Run | Yrd Mat Min Mat Min Matter Collected 307 | 232 38 . . 37 Remotely . | . . . . . Salvage Created 333 | . 127 . . 206 Parts 18 | . 6 . . 12 Haulers Intercepted . | . . . . . Recyclers Shooed . | . . . . . Parts Field Recycled . | . . . . . Retrieved Matter . | . . . . . Parts Self-Destructed . | . . . . . Prevented . | . . . . . Parts Restored . | . . . . . Kills | -11 -10 -10 -9 -9 ------- Run | Yrd Mat Min Mat Min Combat Hostiles Destroyed 7 | . 2 . . 5 Guns 6 | . 1 . . 5 AOE 1 | . 1 . . . Classes Destroyed 5 | . 3 . . 2 Worker 1 | . 1 . . . Watcher 1 | . 1 . . . Grunt 5 | . 2 . . 3 Brawler 1 | . . . . 1 Assembled 1 | . . . . 1 Best Kill Streak 4 | . 4 . . 4 Combat Bots Only 4 | . 2 . . 4 Max Kills in Single Turn 2 | . 2 . . 2 Gunslinging 1 | . . . . 1 Exploded 1 | . 1 . . . Melee . | . . . . . Uniques/NPCs Destroyed . | . . . . . Combat | -11 -10 -10 -9 -9 -------- Run | Yrd Mat Min Mat Min Hostile Shots Fired 123 | . 13 . 10 100 Missed 36 | . 5 . 5 26 Hits 87 | . 8 . 5 74 Melee 2 | . . . . 2 Projectile 85 | . 8 . 5 72 Critical Strikes 2 | . . . . 2 Damage Taken 1099 | . 153 . 72 874 Core 459 | . 54 . . 405 Absorbed by Shields . | . . . . . Core Remaining (%) 89 | 100 . 78 . . Volleys Fired 31 | . 5 . . 26 Largest 2 | . 2 . . 2 Hottest 80 | . 80 . . 80 Shots Fired 58 | . 10 . . 48 Gun 58 | . 10 . . 48 Cannon . | . . . . . Launcher . | . . . . . Special . | . . . . . Kinetic . | . . . . . Thermal . | . . . . . Explosive . | . . . . . Electromagnetic 58 | . 10 . . 48 Robot Hit Streak 9 | . 3 . . 9 Robot Miss Streak 3 | . 1 . . 3 Penetration Max . | . . . . . Secondary Targets 1 | . . . . 1 Max Gunslinging Chain 1 | . . . . 1 Shots Hit Robots 27 | . 6 . . 21 Core Hits 17 | . 5 . . 12 Critical Kills . | . . . . . Critical Parts Destroyed . | . . . . . Critical Strikes 1 | . . . . 1 Corrupt 1 | . . . . 1 Melee Attacks . | . . . . . Impact . | . . . . . Slashing . | . . . . . Piercing . | . . . . . Sneak Attacks . | . . . . . Combat Hostiles . | . . . . . Follow-up Attacks . | . . . . . Damage Inflicted 634 | . 220 3 . 411 Guns 365 | . 92 . . 273 Cannons . | . . . . . Explosions 216 | . 128 . . 88 Melee . | . . . . . Ramming 53 | . . 3 . 50 Kinetic . | . . . . . Thermal 216 | . 128 . . 88 Explosive . | . . . . . Electromagnetic 365 | . 92 . . 273 Impact . | . . . . . Slashing . | . . . . . Piercing . | . . . . . Highest Corruption 3 | . . . . 3 Average Corruption 2 | . . . . 2 Corruption Purged . | . . . . . Corruption Blocked . | . . . . . Effects 16 | . . . . 16 Message Errors 4 | . . . . 4 Matter Fused 3 | . . . . 3 Heat Flow Errors 1 | . . . . 1 Energy Discharges 4 | . . . . 4 Data Loss (minor) 4 | . . . . 4 Overload Shots . | . . . . . Overflow Damage 1 | . . . . 1 Projectiles . | . . . . . Explosions 1 | . . . . 1 Melee . | . . . . . Knockbacks . | . . . . . Impact . | . . . . . Kinetic . | . . . . . Secondary . | . . . . . Self-Inflicted Damage 102 | . 49 . . 53 Shots 2 | . 1 . . 1 Rammed 11 | . . . . 11 Targets Rammed 13 | . . 1 . 12 Kicked 2 | . . 1 . 1 Crushed . | . . . . . Highest Temperature 367 | . 114 . . 367 Average Temperature 101 | . 51 . . 109 Received Heat Transfer 375 | . 57 . 9 309 Effects 2 | . . . . 2 Shutdowns 1 | . . . . 1 Interference 1 | . . . . 1 Siege Activations . | . . . . . Martial Activations . | . . . . . Shielding Activations . | . . . . . Robots Disrupted . | . . . . . Combat Hostiles . | . . . . . Robots Corrupted . | . . . . . Combat Hostiles . | . . . . . Parts Fried 1 | . . . . 1 Impact Corruptions . | . . . . . Robots Melted . | . . . . . Combat Hostiles . | . . . . . Parts Melted . | . . . . . Heat Transferred 250 | . 100 . . 150 Parts Sabotaged . | . . . . . Parts Stolen . | . . . . . Parts Stripped . | . . . . . Power Chain Reactions 2 | . 1 . . 1 Alert | -11 -10 -10 -9 -9 ------- Run | Yrd Mat Min Mat Min Maximum Alert Level . | . . . . . Low Security (%) 100 | 100 100 100 100 100 Level 1 . | . . . . . Level 2 . | . . . . . Level 3 . | . . . . . Level 4 . | . . . . . Level 5 . | . . . . . High Security . | . . . . . Max Security . | . . . . . Peak Influence 109 | . 61 . 4 109 Initial . | . . . . . Average 16 | . 8 . . 25 Influence Increases 469 | . 68 . 4 397 Destroy 0b10 Robot/C 160 | . 40 . . 120 Destroy 0b10 Robot/NC 15 | . 10 . . 5 Destroy Leader 22 | . 12 . . 10 Allied During Kill 4 | . . . . 4 Successful Hack 4 | . . . 4 . Destroy Structure 9 | . 6 . . 3 Lose Combat Pursuer 255 | . . . . 255 Influence Decreases 372 | . 68 . 4 300 Time Decay 216 | . 20 . 4 192 Lost Part 68 | . . . . 68 Lost Ally 40 | . . . . 40 Purge Threat 48 | . 48 . . . Squads Dispatched 3 | . 1 . 1 1 Investigation . | . . . . . Extermination . | . . . . . Reinforcement 3 | . 1 . 1 1 Assault . | . . . . . Garrison . | . . . . . Intercept . | . . . . . Searches Triggered . | . . . . . Construction Impeded 1 | . . . . 1 Haulers Reinforced . | . . . . . Active Scanning Responses . | . . . . . Cargo Convoy Interrupts . | . . . . . Stealth | -11 -10 -10 -9 -9 --------- Run | Yrd Mat Min Mat Min Distress Signals 4 | . 2 . 1 1 Communications Jammed . | . . . . . Distress Signals . | . . . . . Times Spotted 39 | . 8 . 5 26 Peak Tracking Total 6 | . 5 . 4 6 Tactical Retreats 10 | . . . . 10 Traps | -11 -10 -10 -9 -9 ------- Run | Yrd Mat Min Mat Min Traps Triggered . | . . . . . Indirectly . | . . . . . Trap Hack Attempts . | . . . . . Triggered . | . . . . . Disarmed . | . . . . . Reprogrammed . | . . . . . Reused . | . . . . . Traps Extracted . | . . . . . Installed . | . . . . . Triggered . | . . . . . Machines | -11 -10 -10 -9 -9 ---------- Run | Yrd Mat Min Mat Min Machines Disabled . | . . . . . Max in Single Turn . | . . . . . Machines Repaired . | . . . . . Machines Dismantled . | . . . . . Machines Sabotaged . | . . . . . Overloaded Fab Kills . | . . . . . Hacking | -11 -10 -10 -9 -9 --------- Run | Yrd Mat Min Mat Min Machines Accessed 5 | . 3 . 2 . Terminals 5 | . 3 . 2 . Fabricators . | . . . . . Repair Stations . | . . . . . Recycling Units . | . . . . . Scanalyzers . | . . . . . Garrison Access . | . . . . . Total Hacks 13 | . 7 . 6 . Successful 3 | . 1 . 2 . Failed 10 | . 6 . 4 . Catastrophic . | . . . . . Database Lockouts . | . . . . . Manual . | . . . . . Terminals 13 | . 7 . 6 . Fabricators . | . . . . . Repair Stations . | . . . . . Recycling Units . | . . . . . Scanalyzers . | . . . . . Garrison Access . | . . . . . Terminal Hacks 3 | . 1 . 2 . Emergency Access Points 1 | . . . 1 . Unreport Threat 1 | . 1 . . . Zone Layout 1 | . . . 1 . Fabricator Hacks . | . . . . . Repair Station Hacks . | . . . . . Recycling Unit Hacks . | . . . . . Scanalyzer . | . . . . . Garrison Access Hacks . | . . . . . Unauthorized Hacks . | . . . . . Terminals . | . . . . . Fabricators . | . . . . . Repair Stations . | . . . . . Recycling Units . | . . . . . Scanalyzers . | . . . . . Garrison Access . | . . . . . Data Cores Recovered . | . . . . . Used . | . . . . . Hacking Detections 5 | . 3 . 2 . Full Trace Events 1 | . 1 . . . Feedback Events . | . . . . . Feedback Blocked . | . . . . . Robot Schematics Acquired . | . . . . . Robots Built . | . . . . . Authchips . | . . . . . Time . | . . . . . Total Robot Build Rating . | . . . . . Part Schematics Acquired . | . . . . . Parts Built . | . . . . . Authchips . | . . . . . Time . | . . . . . Total Part Build Rating . | . . . . . Part Studies Acquired . | . . . . . Parts Repaired . | . . . . . Time . | . . . . . Parts Recycled . | . . . . . Recycled Matter . | . . . . . Retrieved Matter . | . . . . . Retrieved Components . | . . . . . Parts Scanalyzed . | . . . . . Part Schematics Acquired . | . . . . . Parts Damaged . | . . . . . Bothacking | -11 -10 -10 -9 -9 ------------ Run | Yrd Mat Min Mat Min Used RIF Installer . | . . . . . Robots Hacked . | . . . . . Non-combat . | . . . . . Combat . | . . . . . Robot Hacks Applied . | . . . . . Relay Couplers Released . | . . . . . Fabnet Peak Effective % . | . . . . . Robots Rewired . | . . . . . Allies Hacked . | . . . . . Hacks Repelled . | . . . . . Allies | -11 -10 -10 -9 -9 -------- Run | Yrd Mat Min Mat Min Total Allies 2 | . . . . 2 Largest Group 2 | . . . . 2 Highest-Rated Group 39 | . . . . 39 Highest-Rated Ally 31 | . . . . 31 Total Orders . | . . . . . Ally Attacks 17 | . . . . 17 Total Damage 248 | . . . . 248 Kills 3 | . . . . 3 Allies Corrupted . | . . . . . Allies Melted . | . . . . . Intel | -11 -10 -10 -9 -9 ------- Run | Yrd Mat Min Mat Min Active Infowar (turns) . | . . . . . Robot Analysis Total . | . . . . . Derelict Logs Recovered 2 | . . 1 . 1 Drone Launches . | . . . . . Drone Recoveries . | . . . . . Exploration | -11 -10 -10 -9 -9 ------------- Run | Yrd Mat Min Mat Min Turns Passed 1622 | 59 236 151 207 969 Spaces Moved 881 | 46 177 115 129 414 Core 214 | 19 . . . 195 Treads . | . . . . . Legs 667 | 27 177 115 129 219 Wheels . | . . . . . Hover . | . . . . . Flight . | . . . . . Fastest Speed 50 | 50 120 120 120 50 Average Speed 110 | 103 120 120 156 90 Slowest Speed 300 | 120 120 120 190 300 Overloaded Moves . | . . . . . Propulsion Burnouts . | . . . . . Robots Hopped . | . . . . . Potential Cave-ins . | . . . . . Cave-ins Triggered . | . . . . . Exploration Rate (%) 30 | 3 28 35 20 65 Regions Visited 4 Branch Regions 2 Pre-discovered Areas . | . . . . . Known Exits Taken 1 | . . . 1 . Unknown Exits Taken 3 | 1 1 1 . . Scrap Searched 2 | . . 1 . 1 Spaces Dug . | . . . . . Terrain Destroyed 8 | . 5 . . 3 Melee . | . . . . . Projectile . | . . . . . AOE 8 | . 5 . . 3 Terrain Rammed . | . . . . . Walls Destroyed . | . . . . . Machines Disabled . | . . . . . Actions | -11 -10 -10 -9 -9 --------- Run | Yrd Mat Min Mat Min Total 1468 | 57 190 128 135 958 Wait 522 | . 7 11 3 501 Move 877 | 45 176 114 128 414 Hop . | . . . . . Pick Up 11 | 6 1 1 1 2 Fast Attach . | . . . . . Attach 11 | 6 . 1 2 2 Detach 1 | . . . 1 . Swap 1 | . 1 . . . Drop 1 | . . . . 1 Fire 31 | . 5 . . 26 Melee . | . . . . . Ram 11 | . . . . 11 Kick 2 | . . 1 . 1 Crush . | . . . . . Escape Stasis . | . . . . . Rewire . | . . . . . Trap . | . . . . . Miscellaneous . | . . . . . Route ------- -11/Scrapyard -10/Materials -10/Mines -9/Materials -9/Mines History --------- Turn | Location | Event 12 | -11/Scrapyard | Discovered new exit (range 15) 60 | -11/Scrapyard | Entered Materials 288 | -10/Materials | Discovered new exit (range 8) 296 | -10/Materials | Entered Mines 303 | -10/Mines | Build established: Mutant 330 | -10/Mines | Met a Derelict bent on vengeance 419 | -10/Mines | Discovered new exit (range 4) 447 | -10/Mines | Entered Materials 447 | -9/Materials | Evolved 2 slots: Power x1, Propulsion x1 448 | -9/Materials | Identified exit to Mines 654 | -9/Materials | Entered Mines 799 | -9/Mines | Lost 3 parts (2n1u) 833 | -9/Mines | Excavation squad dispatched 833 | -9/Mines | A large section of the Mines collapsed 1083 | -9/Mines | Excavation squad dispatched 1333 | -9/Mines | Excavation squad dispatched 1444 | -9/Mines | Lost 3 parts (1p2w) 1530 | -9/Mines | Core integrity fell below 50% 1545 | -9/Mines | Lost 3 parts (1p2n) 1616 | -9/Mines | Core integrity fell below 20% 1623 | -9/Mines | Destroyed by G-34 Mercenary with Small Laser Last Messages --------------- G-47 Trooper unfolds itself. G-34 Mercenary unfolds itself. G-34 Mercenary suffers critical hit (Burn). G-34 Mercenary overheating. S-10 Pest: "SECOND INTRUDER APPROACHING. ELIMINATE." Aluminum Leg destroyed. System corrupted: Energy discharge (-75). Ion Engine destroyed. Aluminum Leg destroyed. Slammed into G-34 Mercenary. System corrupted: Heat flow error (+172). Slammed into S-10 Pest. Slammed into G-34 Mercenary. A derelict is hurriedly installing traps. Searching scrap... Found Med. Armor Plating. Found Plasma Cutter. Found 32 Matter. Slammed into G-34 Mercenary. Map ----- +----------------------------------------------------+ | ??????????????????????????????????? | | ??????????????????????????????????? | | ??????????????????????????????????? | | ??????????????????????????????????? | | ??????????????????????????????????? | | ??????????????????????????????????? | | ??????????????????????????????????? | | ??????????????????????????????????? | | ???????????????????###????????????? | | ??????????????????##"##???????????? | | ?????????????????###"##???#???????? | | ?????????????????# "########??????? | | ?????????????????##" "" #######? | | ?????????????????## * " # | | ??????????????????###| ####??? | | ????????????????????##%= ##?????? | | ?????????????????????#*%"###???#### | | ???????????????????###%%##????## # | | ??####??????? ????## ###### | | ?## ##????? #???## " | | ?# #????? #???# | | ?# #????? #???# """ ## | | ??# ##???# #???## """ #### | | ??## ##?## #????## """ ##?## | | ???# ### t##???## % #??###### | | ???## %g@t #???# = #???????# | | ????## g g ##??# !%=#???????? | | ????## ##?# %##???????? | | ????# #?## ## #????????? | | ????# #??#####[####?????? | | ????# gk ##??????# %!/#?????? | | ????## #???????####%#?????? | | ?????##### ##?????????# #?????? | | ?????????# ##????????# #?????? | | ?????????## ####?????#%#?????? | | ??????????## ####### #?????? | | ???????????## #??#??? | | ????????????#### ######## ## #??? | | ???????????????# ###??????# #### | | ???????######??# ########## #### # | | ??????## ##?# ### | | ????### ### ########## ## | | ???## #????????# ## | | ??## #####????????# | | ??# #????????????# ### | | ??# #^## ^ #????????????# ## | | ??# # ^ #???????????# ## | | ??# ^# # #???????????# ### | | ??# !^# ##???######### ##### | | ??#%| ^ #####????# #?### | +----------------------------------------------------+ Best States ------------- Heat Dissipation 28 Energy Generation 15 Energy Capacity 400 Matter Stores 300 Matter Capacity 300 Sight Range 16 Terrain Scan Density 10 Armor Coverage 150 Evasion (%) 55 Targeting Accuracy 6 Item Schematics ----------------- None Robot Schematics ------------------ None Fabricated ------------ Nothing Repaired ---------- Nothing Studied --------- None Alien Tech Used ----------------- None Achievements -------------- None Challenges ------------ None Game ------ Seed ResetGrenadeManipulator Manual? 0 Play Time 00:14:38 Cumulative 5.7 hours Start 2026.04.20 @ 16:14:26 End 2026.04.20 @ 16:24:33 Sessions 1 Manual Loads 0 Difficulty Rogue Special Mode None Game No. 18 Rogue 18 Adventurer 0 Explorer 0 Win Type - Total 0 Types 0/0/0/0/0/0/0/0/0/0 Lore% 7 Gallery% 10 Achievement% 8 Wizard Run 0 Options --------- Layout 1 ASCII 0 Keyboard 0 Movement Numpad Keybinds 0 Fullscreen 1 Font 32/SmallcapsGlow Map View 50x35 Zoom Use 0% Tactical HUD 0 Map Filters NONE Filters NONE Steam 1 RUN: b8a15fb8-7126-4418-a249-cf8c278f4bcc